[Event "Late-Titled-Tuesday-Blitz-May-14-2024"]
[Site "Chess.com"]
[Date "2024.05.14"]
[Round "1"]
[White "mostafa_sakha"]
[Black "B_nn_t"]
[Result "1-0"]
[WhiteElo "2354"]
[BlackElo "2641"]
[TimeControl "180+1"]
[EndTime "14:04:38 PDT"]
[Termination "mostafa_sakha won by resignation"]

1. d4 {[%clk 0:03:00.9]} 1... Nf6 {[%clk 0:02:59.7]} 2. c4 {[%clk 0:03:00.8]}
2... e6 {[%clk 0:02:59.6]} 3. Nc3 {[%clk 0:03:00.9]} 3... Bb4 {[%clk 0:02:58.9]}
4. e3 {[%clk 0:03:01.2]} 4... O-O {[%clk 0:02:58.6]} 5. Bd3 {[%clk 0:03:01.4]}
5... d5 {[%clk 0:02:58.5]} 6. Nf3 {[%clk 0:03:01.7]} 6... b6 {[%clk 0:02:57.7]}
7. O-O {[%clk 0:03:01.5]} 7... Bb7 {[%clk 0:02:57.3]} 8. cxd5 {[%clk 0:03:01.9]}
8... exd5 {[%clk 0:02:57.1]} 9. Ne5 {[%clk 0:03:02.3]} 9... Ne4 {[%clk
0:02:54.8]} 10. Nxe4 {[%clk 0:02:53.6]} 10... dxe4 {[%clk 0:02:55.7]} 11. Bc4
{[%clk 0:02:53.9]} 11... Nd7 {[%clk 0:02:50.8]} 12. Nxf7 {[%clk 0:02:50.9]}
12... Rxf7 {[%clk 0:02:37.8]} 13. Bxf7+ {[%clk 0:02:51.8]} 13... Kxf7 {[%clk
0:02:31.1]} 14. Qb3+ {[%clk 0:02:51.6]} 14... Kf8 {[%clk 0:02:31.7]} 15. Qxb4+
{[%clk 0:02:51.2]} 15... Kg8 {[%clk 0:02:32.4]} 16. Bd2 {[%clk 0:02:39]} 16...
Nf6 {[%clk 0:02:32.1]} 17. Rac1 {[%clk 0:02:37.5]} 17... Nd5 {[%clk 0:02:29.5]}
18. Qb3 {[%clk 0:02:30.2]} 18... Kh8 {[%clk 0:02:28.1]} 19. f3 {[%clk
0:02:28.1]} 19... Nf6 {[%clk 0:02:23.2]} 20. Qe6 {[%clk 0:02:17.6]} 20... exf3
{[%clk 0:02:22.3]} 21. gxf3 {[%clk 0:02:17.4]} 21... Bd5 {[%clk 0:02:19.8]} 22.
Qe5 {[%clk 0:02:15]} 22... c5 {[%clk 0:02:13.6]} 23. e4 {[%clk 0:02:14.2]} 23...
Bxa2 {[%clk 0:02:12.7]} 24. d5 {[%clk 0:02:12]} 24... Qf8 {[%clk 0:01:53.6]} 25.
Bc3 {[%clk 0:02:10.5]} 25... Re8 {[%clk 0:01:53]} 26. Qg5 {[%clk 0:02:08.9]}
26... Qf7 {[%clk 0:01:51.9]} 27. Kh1 {[%clk 0:01:58.9]} 27... h6 {[%clk
0:01:48.2]} 28. Qh4 {[%clk 0:01:56.7]} 28... b5 {[%clk 0:01:41.4]} 29. Bxf6
{[%clk 0:01:55.6]} 29... Qxf6 {[%clk 0:01:38]} 30. Qxf6 {[%clk 0:01:55.7]} 30...
gxf6 {[%clk 0:01:38.9]} 31. Rxc5 {[%clk 0:01:56]} 31... f5 {[%clk 0:01:37.6]}
32. Re1 {[%clk 0:01:44.3]} 32... a6 {[%clk 0:01:29.5]} 33. e5 {[%clk 0:01:43.4]}
33... Kg7 {[%clk 0:01:28.1]} 34. d6 {[%clk 0:01:38.1]} 34... Be6 {[%clk
0:01:27.2]} 35. Rc7+ {[%clk 0:01:37.3]} 35... Kg6 {[%clk 0:01:27.5]} 36. Rg1+
{[%clk 0:01:34.6]} 36... Kh5 {[%clk 0:01:27.5]} 37. Re7 {[%clk 0:01:34.4]} 1-0

[Event "Late-Titled-Tuesday-Blitz-May-14-2024"]
[Site "Chess.com"]
[Date "2024.05.14"]
[Round "1"]
[White "Ykow"]
[Black "Duhless"]
[Result "0-1"]
[WhiteElo "2543"]
[BlackElo "3108"]
[TimeControl "180+1"]
[EndTime "14:04:43 PDT"]
[Termination "Duhless won by resignation"]

1. e4 {[%clk 0:02:54.4]} 1... c5 {[%clk 0:02:58.7]} 2. Nf3 {[%clk 0:02:52.8]}
2... d6 {[%clk 0:02:59.4]} 3. Nc3 {[%clk 0:02:52.1]} 3... Nf6 {[%clk 0:02:59]}
4. d4 {[%clk 0:02:48.7]} 4... cxd4 {[%clk 0:02:59.7]} 5. Nxd4 {[%clk 0:02:49.6]}
5... Nc6 {[%clk 0:03:00.3]} 6. f3 {[%clk 0:02:49.3]} 6... e5 {[%clk 0:02:58.8]}
7. Nb3 {[%clk 0:02:49.5]} 7... Be7 {[%clk 0:02:58.8]} 8. Be3 {[%clk 0:02:49.7]}
8... O-O {[%clk 0:02:58.5]} 9. Qe2 {[%clk 0:02:49.9]} 9... a5 {[%clk 0:02:59.2]}
10. a4 {[%clk 0:02:44.9]} 10... Be6 {[%clk 0:02:57.8]} 11. O-O-O {[%clk
0:02:44.7]} 11... Nb4 {[%clk 0:02:56.7]} 12. Qb5 {[%clk 0:02:44.7]} 12... Qc8
{[%clk 0:02:51.5]} 13. Kb1 {[%clk 0:02:41.4]} 13... d5 {[%clk 0:02:49.8]} 14.
Bc5 {[%clk 0:02:34.7]} 14... Bd7 {[%clk 0:02:31.8]} 15. Qb6 {[%clk 0:02:31.3]}
15... Bd8 {[%clk 0:02:31.5]} 16. Qd6 {[%clk 0:02:28.4]} 16... Re8 {[%clk
0:02:32.1]} 17. Bxb4 {[%clk 0:02:17.4]} 17... Bc7 {[%clk 0:02:29.4]} 18. Qc5
{[%clk 0:02:15]} 18... b6 {[%clk 0:02:28.6]} 19. Qf2 {[%clk 0:02:15]} 19... axb4
{[%clk 0:02:28.7]} 20. Nxd5 {[%clk 0:02:15.3]} 20... Nxd5 {[%clk 0:02:27.7]} 21.
exd5 {[%clk 0:02:14.1]} 21... Rxa4 {[%clk 0:02:22.3]} 22. Bd3 {[%clk 0:02:14.2]}
22... Qa8 {[%clk 0:02:15.1]} 23. Qh4 {[%clk 0:02:10.7]} 23... h6 {[%clk
0:02:13.1]} 24. Rhe1 {[%clk 0:02:00.5]} 24... Bd8 {[%clk 0:01:59.6]} 25. Qe4
{[%clk 0:01:57.6]} 25... f5 {[%clk 0:01:56.5]} 26. Qe3 {[%clk 0:01:50.4]} 26...
Qa7 {[%clk 0:01:49.9]} 27. g4 {[%clk 0:01:49.5]} 27... Bg5 {[%clk 0:01:48.6]}
28. Qe2 {[%clk 0:01:23.5]} 28... Ra8 {[%clk 0:01:39.8]} 29. c3 {[%clk
0:01:23.9]} 29... bxc3 {[%clk 0:01:33.9]} 30. d6 {[%clk 0:01:24.1]} 30... Be6
{[%clk 0:01:19.8]} 0-1

[Event "Late-Titled-Tuesday-Blitz-May-14-2024"]
[Site "Chess.com"]
[Date "2024.05.14"]
[Round "1"]
[White "LUISMIGUELOV"]
[Black "BabageldiAnnaberdiyev"]
[Result "0-1"]
[WhiteElo "2224"]
[BlackElo "2592"]
[TimeControl "180+1"]
[EndTime "14:04:48 PDT"]
[Termination "BabageldiAnnaberdiyev won by resignation"]

1. d4 {[%clk 0:02:49.2]} 1... e6 {[%clk 0:03:00.4]} 2. c3 {[%clk 0:02:47.5]}
2... d5 {[%clk 0:02:56.9]} 3. Bf4 {[%clk 0:02:46.7]} 3... Bd6 {[%clk 0:02:56.1]}
4. e3 {[%clk 0:02:45.4]} 4... f5 {[%clk 0:02:54.7]} 5. Bxd6 {[%clk 0:02:43.3]}
5... Qxd6 {[%clk 0:02:53.8]} 6. f4 {[%clk 0:02:43.8]} 6... Nf6 {[%clk
0:02:52.8]} 7. Nf3 {[%clk 0:02:44.2]} 7... O-O {[%clk 0:02:53.2]} 8. Nbd2 {[%clk
0:02:44.1]} 8... c5 {[%clk 0:02:52.9]} 9. g3 {[%clk 0:02:42.1]} 9... cxd4 {[%clk
0:02:53.1]} 10. exd4 {[%clk 0:02:41.5]} 10... Ne4 {[%clk 0:02:53.6]} 11. Be2
{[%clk 0:02:39.5]} 11... Nc6 {[%clk 0:02:53.4]} 12. O-O {[%clk 0:02:39.3]} 12...
Bd7 {[%clk 0:02:53.9]} 13. Ne5 {[%clk 0:02:38.2]} 13... Nxe5 {[%clk 0:02:52.7]}
14. fxe5 {[%clk 0:02:35.7]} 14... Qb6 {[%clk 0:02:52.8]} 15. Nxe4 {[%clk
0:02:33.3]} 15... fxe4 {[%clk 0:02:52.7]} 16. Qd2 {[%clk 0:02:33.6]} 16... Bb5
{[%clk 0:02:46.7]} 17. Rxf8+ {[%clk 0:02:30.3]} 17... Rxf8 {[%clk 0:02:47.6]}
18. Bg4 {[%clk 0:02:26.5]} 18... h6 {[%clk 0:02:33.9]} 19. a4 {[%clk 0:02:25.9]}
19... Bd3 {[%clk 0:02:33.8]} 20. a5 {[%clk 0:02:21.6]} 20... Qc6 {[%clk
0:02:33.8]} 21. Be2 {[%clk 0:02:14.9]} 21... Bxe2 {[%clk 0:02:20.3]} 22. Qxe2
{[%clk 0:02:14.2]} 22... Rf5 {[%clk 0:02:19.9]} 23. Rf1 {[%clk 0:02:11.6]} 23...
Rxf1+ {[%clk 0:02:06.1]} 24. Kxf1 {[%clk 0:02:07.8]} 24... Qa4 {[%clk
0:02:05.1]} 25. Qg4 {[%clk 0:01:41.6]} 25... Kf7 {[%clk 0:01:59.1]} 26. Qh5+
{[%clk 0:01:40.4]} 26... Ke7 {[%clk 0:01:53.5]} 27. Qh4+ {[%clk 0:01:40.3]}
27... Kd7 {[%clk 0:01:49.5]} 28. Qg4 {[%clk 0:01:33.4]} 28... Qa1+ {[%clk
0:01:48.6]} 29. Kg2 {[%clk 0:01:33.2]} 29... Qxb2+ {[%clk 0:01:48]} 30. Kh3
{[%clk 0:01:33.7]} 30... g5 {[%clk 0:01:45.3]} 31. Qh5 {[%clk 0:01:33]} 31...
Qf2 {[%clk 0:01:42.4]} 32. Qxh6 {[%clk 0:01:28]} 32... Qf1+ {[%clk 0:01:40.5]}
33. Kg4 {[%clk 0:01:23.7]} 33... Qf5+ {[%clk 0:01:41.2]} 34. Kh5 {[%clk
0:01:21.5]} 34... Qh3+ {[%clk 0:01:40.3]} 35. Kg6 {[%clk 0:01:20.4]} 35... Qxh6+
{[%clk 0:01:41.2]} 36. Kxh6 {[%clk 0:01:20.4]} 36... e3 {[%clk 0:01:42.1]} 37.
h4 {[%clk 0:01:20.1]} 37... e2 {[%clk 0:01:43]} 38. hxg5 {[%clk 0:01:20.1]}
38... e1=Q {[%clk 0:01:43.6]} 39. g6 {[%clk 0:01:20.6]} 39... Qxg3 {[%clk
0:01:43.8]} 40. g7 {[%clk 0:01:20.3]} 40... Ke7 {[%clk 0:01:44.1]} 41. Kh7
{[%clk 0:01:20.3]} 41... Kf7 {[%clk 0:01:44]} 42. g8=N {[%clk 0:01:17.4]} 42...
Qxg8+ {[%clk 0:01:43.7]} 0-1

[Event "Late-Titled-Tuesday-Blitz-May-14-2024"]
[Site "Chess.com"]
[Date "2024.05.14"]
[Round "1"]
[White "rdarruda"]
[Black "h4parah5"]
[Result "0-1"]
[WhiteElo "2534"]
[BlackElo "3034"]
[TimeControl "180+1"]
[EndTime "14:04:55 PDT"]
[Termination "h4parah5 won by resignation"]

1. Nf3 {[%clk 0:02:58.3]} 1... c5 {[%clk 0:02:56.6]} 2. c4 {[%clk 0:02:57.4]}
2... Nc6 {[%clk 0:02:56.2]} 3. Nc3 {[%clk 0:02:57.5]} 3... Nf6 {[%clk
0:02:55.6]} 4. d4 {[%clk 0:02:57]} 4... cxd4 {[%clk 0:02:56.5]} 5. Nxd4 {[%clk
0:02:57]} 5... e6 {[%clk 0:02:57.4]} 6. g3 {[%clk 0:02:56.3]} 6... Qb6 {[%clk
0:02:56.3]} 7. Nb3 {[%clk 0:02:55.6]} 7... Ne5 {[%clk 0:02:55.3]} 8. Bg2 {[%clk
0:02:50.1]} 8... Nxc4 {[%clk 0:02:53.7]} 9. O-O {[%clk 0:02:49.8]} 9... Bb4
{[%clk 0:02:47.4]} 10. e4 {[%clk 0:02:47.2]} 10... d6 {[%clk 0:02:45]} 11. Qe2
{[%clk 0:02:46.7]} 11... Ne5 {[%clk 0:02:40.7]} 12. Be3 {[%clk 0:02:43.4]} 12...
Qa6 {[%clk 0:02:21.2]} 13. Qxa6 {[%clk 0:01:54.4]} 13... bxa6 {[%clk 0:02:20.4]}
14. Rad1 {[%clk 0:01:53]} 14... O-O {[%clk 0:02:16.9]} 15. h3 {[%clk 0:01:51.1]}
15... Bb7 {[%clk 0:02:14.7]} 16. a3 {[%clk 0:01:47.5]} 16... Bxc3 {[%clk
0:02:12.8]} 17. bxc3 {[%clk 0:01:48.4]} 17... Nc4 {[%clk 0:02:12.4]} 18. Bg5
{[%clk 0:01:44.1]} 18... Nxe4 {[%clk 0:02:09.9]} 19. Bc1 {[%clk 0:01:20.7]}
19... Nc5 {[%clk 0:01:47.5]} 20. Bxb7 {[%clk 0:01:11.1]} 20... Nxb7 {[%clk
0:01:46.8]} 21. Rd3 {[%clk 0:01:03]} 21... Rac8 {[%clk 0:01:42.5]} 22. Rfd1
{[%clk 0:01:02.8]} 22... d5 {[%clk 0:01:42.2]} 23. Kg2 {[%clk 0:01:01.6]} 23...
Nbd6 {[%clk 0:01:41.5]} 24. Bf4 {[%clk 0:00:59.6]} 24... Ne4 {[%clk 0:01:32.9]}
25. Bc1 {[%clk 0:00:57.7]} 25... Nc5 {[%clk 0:01:32.5]} 26. Nxc5 {[%clk
0:00:56.5]} 26... Rxc5 {[%clk 0:01:33.4]} 27. a4 {[%clk 0:00:56.2]} 27... Ra5
{[%clk 0:01:32.2]} 28. Be3 {[%clk 0:00:47]} 28... Nb2 {[%clk 0:01:29.1]} 0-1

[Event "Late-Titled-Tuesday-Blitz-May-14-2024"]
[Site "Chess.com"]
[Date "2024.05.14"]
[Round "1"]
[White "Oleksandr_Bortnyk"]
[Black "GrotBchess"]
[Result "1-0"]
[WhiteElo "3048"]
[BlackElo "2535"]
[TimeControl "180+1"]
[EndTime "14:05:05 PDT"]
[Termination "Oleksandr_Bortnyk won by resignation"]

1. e4 {[%clk 0:03:00.9]} 1... c5 {[%clk 0:02:59.5]} 2. c3 {[%clk 0:03:00.7]}
2... Nf6 {[%clk 0:02:57.7]} 3. e5 {[%clk 0:03:00.7]} 3... Nd5 {[%clk 0:02:57.9]}
4. d4 {[%clk 0:03:01.6]} 4... cxd4 {[%clk 0:02:58]} 5. Nf3 {[%clk 0:03:02.2]}
5... e6 {[%clk 0:02:58.1]} 6. cxd4 {[%clk 0:03:01.3]} 6... d6 {[%clk 0:02:58.1]}
7. Bc4 {[%clk 0:03:01.3]} 7... Be7 {[%clk 0:02:58.2]} 8. O-O {[%clk 0:03:01.4]}
8... O-O {[%clk 0:02:58]} 9. Qe2 {[%clk 0:03:00.4]} 9... b6 {[%clk 0:02:52.4]}
10. Nbd2 {[%clk 0:02:57.3]} 10... Bb7 {[%clk 0:02:46.7]} 11. Ne4 {[%clk
0:02:57.5]} 11... Nc6 {[%clk 0:02:43.6]} 12. Bd2 {[%clk 0:02:50.6]} 12... h6
{[%clk 0:02:41.5]} 13. Rac1 {[%clk 0:02:48.6]} 13... Rc8 {[%clk 0:02:40.8]} 14.
a3 {[%clk 0:02:46.6]} 14... Rc7 {[%clk 0:02:34.8]} 15. Rfd1 {[%clk 0:02:42.7]}
15... dxe5 {[%clk 0:02:33.1]} 16. dxe5 {[%clk 0:02:42]} 16... Qa8 {[%clk
0:02:32.9]} 17. Bxd5 {[%clk 0:02:34.9]} 17... exd5 {[%clk 0:02:32]} 18. Nd6
{[%clk 0:02:35.8]} 18... Bxd6 {[%clk 0:02:23]} 19. exd6 {[%clk 0:02:36.7]} 19...
Rd7 {[%clk 0:02:23.1]} 20. Bf4 {[%clk 0:02:36.5]} 20... Nd8 {[%clk 0:02:19.9]}
21. Nd4 {[%clk 0:02:11.4]} 21... Nc6 {[%clk 0:02:19.1]} 22. Nf5 {[%clk
0:02:03.6]} 22... Qd8 {[%clk 0:01:47.9]} 23. Qg4 {[%clk 0:02:01.3]} 23... g6
{[%clk 0:01:37]} 24. Nxh6+ {[%clk 0:02:00.5]} 24... Kh7 {[%clk 0:01:36.9]} 25.
Rc3 {[%clk 0:01:55.5]} 25... f5 {[%clk 0:01:16.7]} 26. Qh3 {[%clk 0:01:54]}
26... Kg7 {[%clk 0:01:09.1]} 27. Rxc6 {[%clk 0:01:44.8]} 27... Bxc6 {[%clk
0:01:05.5]} 28. Qc3+ {[%clk 0:01:36.4]} 28... Qf6 {[%clk 0:00:54.6]} 29. Be5
{[%clk 0:01:36.2]} 29... Qxe5 {[%clk 0:00:47]} 30. Qxe5+ {[%clk 0:01:37.1]}
30... Kxh6 {[%clk 0:00:47.2]} 31. Qe3+ {[%clk 0:01:32.6]} 31... Kg7 {[%clk
0:00:45.9]} 32. Qc3+ {[%clk 0:01:32.5]} 1-0

[Event "Late-Titled-Tuesday-Blitz-May-14-2024"]
[Site "Chess.com"]
[Date "2024.05.14"]
[Round "1"]
[White "Andrii_Prydun"]
[Black "Dhaydon19"]
[Result "0-1"]
[WhiteElo "2415"]
[BlackElo "2741"]
[TimeControl "180+1"]
[EndTime "14:05:09 PDT"]
[Termination "Dhaydon19 won by resignation"]

1. Nc3 {[%clk 0:02:58.2]} 1... c6 {[%clk 0:02:58.8]} 2. Nf3 {[%clk 0:02:53.8]}
2... d5 {[%clk 0:02:59.2]} 3. e4 {[%clk 0:02:53.9]} 3... Bg4 {[%clk 0:02:57]} 4.
h3 {[%clk 0:02:51.9]} 4... Bxf3 {[%clk 0:02:56.6]} 5. Qxf3 {[%clk 0:02:52.8]}
5... e6 {[%clk 0:02:56.7]} 6. a3 {[%clk 0:01:30.9]} 6... Nf6 {[%clk 0:02:53.2]}
7. Bd3 {[%clk 0:00:33.5]} 7... Nbd7 {[%clk 0:02:51.8]} 8. O-O {[%clk 0:00:32.8]}
8... Bd6 {[%clk 0:02:48.5]} 9. b4 {[%clk 0:00:31.9]} 9... O-O {[%clk 0:02:44.8]}
10. Bb2 {[%clk 0:00:31.8]} 10... Ne5 {[%clk 0:02:41.3]} 11. Qe2 {[%clk
0:00:31.4]} 11... Nxd3 {[%clk 0:02:40.4]} 12. cxd3 {[%clk 0:00:32.3]} 12... Qc7
{[%clk 0:02:32.8]} 13. Rae1 {[%clk 0:00:31.9]} 13... Be5 {[%clk 0:02:20.4]} 14.
Na4 {[%clk 0:00:28.6]} 14... Bxb2 {[%clk 0:02:18.6]} 15. Nxb2 {[%clk 0:00:29.5]}
15... dxe4 {[%clk 0:02:18.7]} 16. dxe4 {[%clk 0:00:28.8]} 16... Rad8 {[%clk
0:02:19.3]} 17. Nc4 {[%clk 0:00:28.6]} 17... Rd4 {[%clk 0:02:16.5]} 18. f3
{[%clk 0:00:18.6]} 18... Nh5 {[%clk 0:02:10.5]} 19. Rf2 {[%clk 0:00:17.1]} 19...
Nf4 {[%clk 0:02:07.7]} 20. Qf1 {[%clk 0:00:16.7]} 20... Nd3 {[%clk 0:02:07]} 21.
Rc1 {[%clk 0:00:04.2]} 21... Nxc1 {[%clk 0:02:02.1]} 22. Qxc1 {[%clk 0:00:03.9]}
22... Rfd8 {[%clk 0:02:02.7]} 23. Ne3 {[%clk 0:00:02.9]} 23... Qb6 {[%clk
0:01:59.1]} 24. Kf1 {[%clk 0:00:01.8]} 24... Qb5+ {[%clk 0:01:55.9]} 25. Re2
{[%clk 0:00:02]} 0-1

[Event "Late-Titled-Tuesday-Blitz-May-14-2024"]
[Site "Chess.com"]
[Date "2024.05.14"]
[Round "1"]
[White "manitodeplomo"]
[Black "th3d4rkness"]
[Result "0-1"]
[WhiteElo "2561"]
[BlackElo "2179"]
[TimeControl "180+1"]
[EndTime "14:05:10 PDT"]
[Termination "th3d4rkness won by resignation"]

1. d4 {[%clk 0:02:51.4]} 1... Nf6 {[%clk 0:00:51.5]} 2. c4 {[%clk 0:02:49.4]}
2... e6 {[%clk 0:00:51.3]} 3. Nf3 {[%clk 0:02:49]} 3... Bb4+ {[%clk 0:00:50.7]}
4. Bd2 {[%clk 0:02:48.6]} 4... c5 {[%clk 0:00:49.7]} 5. Bxb4 {[%clk 0:02:45.5]}
5... cxb4 {[%clk 0:00:49.9]} 6. Qd3 {[%clk 0:02:45.9]} 6... O-O {[%clk
0:00:49.2]} 7. e4 {[%clk 0:02:42.1]} 7... d5 {[%clk 0:00:48.9]} 8. e5 {[%clk
0:02:40.9]} 8... dxc4 {[%clk 0:00:48.9]} 9. Qxc4 {[%clk 0:02:36.3]} 9... Nd5
{[%clk 0:00:49.1]} 10. Nbd2 {[%clk 0:02:35.1]} 10... b6 {[%clk 0:00:49]} 11. Rc1
{[%clk 0:02:32.9]} 11... Ba6 {[%clk 0:00:48.2]} 12. Qc2 {[%clk 0:02:27.3]} 12...
Bxf1 {[%clk 0:00:47.7]} 13. Kxf1 {[%clk 0:02:28.2]} 13... Nd7 {[%clk 0:00:47.4]}
14. g3 {[%clk 0:02:22.4]} 14... Qe7 {[%clk 0:00:46.5]} 15. Kg2 {[%clk
0:02:21.6]} 15... f5 {[%clk 0:00:43.9]} 16. exf6 {[%clk 0:02:18.7]} 16... Rxf6
{[%clk 0:00:43.9]} 17. Rhe1 {[%clk 0:02:16.4]} 17... Raf8 {[%clk 0:00:43]} 18.
Qc6 {[%clk 0:02:16.4]} 18... Qf7 {[%clk 0:00:38.3]} 19. Re2 {[%clk 0:01:53.6]}
19... Rxf3 {[%clk 0:00:37.4]} 20. Rf1 {[%clk 0:01:30.6]} 20... Rf6 {[%clk
0:00:35.4]} 21. Ne4 {[%clk 0:01:30.4]} 21... Rh6 {[%clk 0:00:32.1]} 22. h4
{[%clk 0:01:21.3]} 22... Qf3+ {[%clk 0:00:31.6]} 0-1

[Event "Late-Titled-Tuesday-Blitz-May-14-2024"]
[Site "Chess.com"]
[Date "2024.05.14"]
[Round "1"]
[White "javierfreilemartin"]
[Black "Malev212"]
[Result "0-1"]
[WhiteElo "2306"]
[BlackElo "2625"]
[TimeControl "180+1"]
[EndTime "14:05:11 PDT"]
[Termination "Malev212 won by resignation"]

1. c4 {[%clk 0:02:58.6]} 1... g6 {[%clk 0:02:57.8]} 2. Nc3 {[%clk 0:02:57.9]}
2... Bg7 {[%clk 0:02:57.7]} 3. d4 {[%clk 0:02:58.5]} 3... d6 {[%clk 0:02:57.2]}
4. e4 {[%clk 0:02:57.6]} 4... c5 {[%clk 0:02:57]} 5. d5 {[%clk 0:02:57.3]} 5...
Bxc3+ {[%clk 0:02:56]} 6. bxc3 {[%clk 0:02:56.5]} 6... e5 {[%clk 0:02:56.4]} 7.
Be2 {[%clk 0:02:52.9]} 7... Qe7 {[%clk 0:02:53]} 8. g4 {[%clk 0:02:50.4]} 8...
f5 {[%clk 0:02:49.4]} 9. gxf5 {[%clk 0:02:49.3]} 9... gxf5 {[%clk 0:02:49]} 10.
Bh5+ {[%clk 0:02:48.9]} 10... Kd8 {[%clk 0:02:49]} 11. Nf3 {[%clk 0:02:48]}
11... f4 {[%clk 0:02:43.7]} 12. Rg1 {[%clk 0:02:40.5]} 12... Nf6 {[%clk
0:02:43]} 13. Ng5 {[%clk 0:02:39.2]} 13... Kc7 {[%clk 0:02:42.7]} 14. Bf7 {[%clk
0:02:21.3]} 14... Nxe4 {[%clk 0:02:38.1]} 15. Nxe4 {[%clk 0:02:15.3]} 15... Qxf7
{[%clk 0:02:37.2]} 16. Ba3 {[%clk 0:01:57.6]} 16... Bf5 {[%clk 0:02:26.8]} 17.
Ng5 {[%clk 0:01:33]} 17... Qe8 {[%clk 0:02:24.5]} 18. Ne6+ {[%clk 0:01:09.4]}
18... Bxe6 {[%clk 0:02:22.7]} 19. dxe6 {[%clk 0:01:09.5]} 19... Qxe6 {[%clk
0:02:22.3]} 20. Rg7+ {[%clk 0:01:07.4]} 20... Nd7 {[%clk 0:02:21.9]} 21. Rb1
{[%clk 0:01:04.6]} 21... Rag8 {[%clk 0:02:16.3]} 22. Rxg8 {[%clk 0:00:54.8]}
22... Rxg8 {[%clk 0:02:15.3]} 23. Kd2 {[%clk 0:00:44.8]} 23... Qxc4 {[%clk
0:02:13]} 24. Qh5 {[%clk 0:00:35.3]} 24... Qxa2+ {[%clk 0:02:08.8]} 25. Rb2
{[%clk 0:00:25.1]} 25... Qxa3 {[%clk 0:02:07.9]} 26. Kc2 {[%clk 0:00:22.7]}
26... Qa4+ {[%clk 0:02:04.8]} 27. Kd2 {[%clk 0:00:21.2]} 27... Rg2 {[%clk
0:02:00.4]} 28. Qe8 {[%clk 0:00:12.8]} 28... Rxf2+ {[%clk 0:01:57.9]} 29. Ke1
{[%clk 0:00:12.9]} 29... Rxb2 {[%clk 0:01:55]} 0-1

[Event "Late-Titled-Tuesday-Blitz-May-14-2024"]
[Site "Chess.com"]
[Date "2024.05.14"]
[Round "1"]
[White "kingofthenil"]
[Black "adriangschnitzer"]
[Result "1-0"]
[WhiteElo "2862"]
[BlackElo "2472"]
[TimeControl "180+1"]
[EndTime "14:05:12 PDT"]
[Termination "kingofthenil won by checkmate"]

1. d4 {[%clk 0:02:59.2]} 1... Nf6 {[%clk 0:02:59.5]} 2. c4 {[%clk 0:02:58.1]}
2... c5 {[%clk 0:02:59.9]} 3. d5 {[%clk 0:02:57.4]} 3... b5 {[%clk 0:03:00]} 4.
cxb5 {[%clk 0:02:57.4]} 4... a6 {[%clk 0:03:00.4]} 5. e3 {[%clk 0:02:57.5]} 5...
g6 {[%clk 0:03:00]} 6. Nc3 {[%clk 0:02:57.3]} 6... Bg7 {[%clk 0:03:00.5]} 7. a4
{[%clk 0:02:57.6]} 7... O-O {[%clk 0:03:00.7]} 8. Ra3 {[%clk 0:02:56.8]} 8...
Bb7 {[%clk 0:02:55.1]} 9. Nh3 {[%clk 0:02:54.4]} 9... e6 {[%clk 0:02:53.8]} 10.
Nf4 {[%clk 0:02:52.2]} 10... g5 {[%clk 0:02:51]} 11. Nd3 {[%clk 0:02:52.2]}
11... c4 {[%clk 0:02:42]} 12. Nc5 {[%clk 0:02:51.6]} 12... Bxd5 {[%clk
0:02:38.6]} 13. e4 {[%clk 0:02:50.9]} 13... d6 {[%clk 0:02:11.6]} 14. exd5
{[%clk 0:02:31.8]} 14... exd5 {[%clk 0:01:57.8]} 15. Nxa6 {[%clk 0:02:28.9]}
15... d4 {[%clk 0:01:25.3]} 16. Qxd4 {[%clk 0:02:25.3]} 16... Re8+ {[%clk
0:01:24.5]} 17. Be2 {[%clk 0:02:24.5]} 17... Ne4 {[%clk 0:01:19.7]} 18. Qd5
{[%clk 0:02:19.9]} 18... Nxc3 {[%clk 0:01:03.7]} 19. bxc3 {[%clk 0:02:20.8]}
19... Nxa6 {[%clk 0:00:54.8]} 20. bxa6 {[%clk 0:02:18.3]} 20... Rb8 {[%clk
0:00:37.8]} 21. Be3 {[%clk 0:02:12.7]} 21... Rb1+ {[%clk 0:00:32.6]} 22. Bd1
{[%clk 0:02:11.7]} 22... Re5 {[%clk 0:00:17.2]} 23. Qd2 {[%clk 0:02:10.4]} 23...
f5 {[%clk 0:00:16.7]} 24. O-O {[%clk 0:02:09.6]} 24... f4 {[%clk 0:00:16.6]} 25.
Bd4 {[%clk 0:02:10.1]} 25... Rd5 {[%clk 0:00:16.8]} 26. Bf3 {[%clk 0:02:09.6]}
26... Rxf1+ {[%clk 0:00:12.9]} 27. Kxf1 {[%clk 0:02:10.5]} 27... Ra5 {[%clk
0:00:12.9]} 28. a7 {[%clk 0:02:09.1]} 28... d5 {[%clk 0:00:09.8]} 29. Bxg7
{[%clk 0:02:08.4]} 29... Kxg7 {[%clk 0:00:10.3]} 30. Qd4+ {[%clk 0:02:08.8]}
30... Kg6 {[%clk 0:00:09.7]} 31. Ra1 {[%clk 0:02:06.7]} 31... Qa8 {[%clk
0:00:08]} 32. Rb1 {[%clk 0:02:06.6]} 32... Qxa7 {[%clk 0:00:08.3]} 33. Rb6+
{[%clk 0:02:07.5]} 33... Kf7 {[%clk 0:00:07.5]} 34. Qf6+ {[%clk 0:02:07]} 34...
Ke8 {[%clk 0:00:08.2]} 35. Re6+ {[%clk 0:02:07]} 35... Kd7 {[%clk 0:00:07.7]}
36. Re7+ {[%clk 0:02:07.9]} 36... Kd8 {[%clk 0:00:07.7]} 37. Qf8# {[%clk
0:02:08.8]} 1-0

[Event "Late-Titled-Tuesday-Blitz-May-14-2024"]
[Site "Chess.com"]
[Date "2024.05.14"]
[Round "1"]
[White "TheWiscoIndian"]
[Black "Artem_Koval"]
[Result "0-1"]
[WhiteElo "2203"]
[BlackElo "2580"]
[TimeControl "180+1"]
[EndTime "14:05:13 PDT"]
[Termination "Artem_Koval won by resignation"]

1. Nf3 {[%clk 0:03:00.4]} 1... d5 {[%clk 0:02:59.6]} 2. b3 {[%clk 0:02:59.6]}
2... Nf6 {[%clk 0:02:59.5]} 3. g3 {[%clk 0:02:59.3]} 3... Bf5 {[%clk 0:02:58.6]}
4. Bb2 {[%clk 0:02:57.5]} 4... e6 {[%clk 0:02:59.1]} 5. d3 {[%clk 0:02:57.9]}
5... Be7 {[%clk 0:02:59.6]} 6. Bg2 {[%clk 0:02:58.2]} 6... O-O {[%clk
0:02:59.9]} 7. O-O {[%clk 0:02:58.5]} 7... h6 {[%clk 0:03:00.3]} 8. c4 {[%clk
0:02:58.7]} 8... c6 {[%clk 0:03:00.7]} 9. Nbd2 {[%clk 0:02:57.9]} 9... a5 {[%clk
0:03:01.1]} 10. cxd5 {[%clk 0:02:56.3]} 10... exd5 {[%clk 0:03:00.1]} 11. Re1
{[%clk 0:02:51.8]} 11... Bh7 {[%clk 0:02:49.7]} 12. e4 {[%clk 0:02:50.8]} 12...
Na6 {[%clk 0:02:46]} 13. e5 {[%clk 0:02:49.9]} 13... Nd7 {[%clk 0:02:46]} 14.
Nd4 {[%clk 0:02:42.8]} 14... Ndc5 {[%clk 0:02:37.4]} 15. e6 {[%clk 0:02:39.6]}
15... Nxd3 {[%clk 0:02:33.4]} 16. exf7+ {[%clk 0:02:38.8]} 16... Rxf7 {[%clk
0:02:34.3]} 17. Ne6 {[%clk 0:02:28.5]} 17... Qd7 {[%clk 0:02:22.9]} 18. Bc3
{[%clk 0:01:49.8]} 18... Nxe1 {[%clk 0:02:15.9]} 19. Qxe1 {[%clk 0:01:50.7]}
19... Re8 {[%clk 0:02:08.9]} 20. Nd4 {[%clk 0:01:26.4]} 20... Bf6 {[%clk
0:01:44]} 21. Qf1 {[%clk 0:01:21.4]} 21... Nb4 {[%clk 0:01:36.4]} 22. Re1 {[%clk
0:01:17.1]} 22... Rxe1 {[%clk 0:01:21]} 23. Qxe1 {[%clk 0:01:18]} 23... Re7
{[%clk 0:01:18.2]} 24. Qd1 {[%clk 0:01:14.2]} 24... c5 {[%clk 0:01:04.5]} 25.
Ne2 {[%clk 0:01:13.1]} 25... Bc2 {[%clk 0:00:57.4]} 26. Qe1 {[%clk 0:01:00.2]}
26... Bxc3 {[%clk 0:00:55.2]} 0-1